[Event "Late-Titled-Tuesday-Blitz-September-26-2023"]
[Site "Chess.com"]
[Date "2023.09.26"]
[Round "5"]
[White "nOcHeaTiNgKiD"]
[Black "vladislavkovalev"]
[Result "0-1"]
[WhiteElo "2613"]
[BlackElo "2879"]
[TimeControl "180+1"]
[EndTime "14:55:45 PDT"]
[Termination "vladislavkovalev won on time"]

1. d4 {[%clk 0:03:00.9]} 1... Nf6 {[%clk 0:03:00.4]} 2. Nf3 {[%clk 0:03:00.7]}
2... e6 {[%clk 0:03:00.8]} 3. Bf4 {[%clk 0:03:00.3]} 3... d5 {[%clk 0:03:00.3]}
4. e3 {[%clk 0:03:00.7]} 4... c5 {[%clk 0:03:00.8]} 5. Nbd2 {[%clk 0:03:00.3]}
5... Nc6 {[%clk 0:02:59.8]} 6. c3 {[%clk 0:03:00.6]} 6... cxd4 {[%clk
0:03:00.5]} 7. exd4 {[%clk 0:03:00.7]} 7... Nh5 {[%clk 0:03:01]} 8. Be3 {[%clk
0:02:59.9]} 8... Bd6 {[%clk 0:03:00.5]} 9. Bd3 {[%clk 0:03:00.1]} 9... Nf4
{[%clk 0:02:59.1]} 10. Bxf4 {[%clk 0:02:59.1]} 10... Bxf4 {[%clk 0:03:00]} 11.
O-O {[%clk 0:02:59.4]} 11... O-O {[%clk 0:02:56.1]} 12. Re1 {[%clk 0:02:58.1]}
12... b6 {[%clk 0:02:32.4]} 13. g3 {[%clk 0:02:50.3]} 13... Bd6 {[%clk
0:02:26.6]} 14. Ne5 {[%clk 0:02:38.1]} 14... Nxe5 {[%clk 0:01:58.7]} 15. dxe5
{[%clk 0:02:38.1]} 15... Bc5 {[%clk 0:01:59.5]} 16. Qh5 {[%clk 0:02:14.3]} 16...
g6 {[%clk 0:01:58.6]} 17. Qh6 {[%clk 0:02:04.8]} 17... Re8 {[%clk 0:01:42.7]}
18. Nf3 {[%clk 0:01:48.6]} 18... Bf8 {[%clk 0:01:42.6]} 19. Qf4 {[%clk
0:01:43.4]} 19... Bg7 {[%clk 0:01:36.4]} 20. h4 {[%clk 0:01:39.2]} 20... h6
{[%clk 0:01:33.5]} 21. Rad1 {[%clk 0:01:25.5]} 21... Qe7 {[%clk 0:01:31.8]} 22.
h5 {[%clk 0:01:15]} 22... g5 {[%clk 0:01:31.8]} 23. Qe3 {[%clk 0:01:07.5]} 23...
Bd7 {[%clk 0:01:17.9]} 24. Nh2 {[%clk 0:00:50.9]} 24... Rad8 {[%clk 0:00:52.9]}
25. Ng4 {[%clk 0:00:46.8]} 25... Bc6 {[%clk 0:00:50.1]} 26. Bc2 {[%clk
0:00:40.3]} 26... d4 {[%clk 0:00:39]} 27. Qd3 {[%clk 0:00:30.5]} 27... Kf8
{[%clk 0:00:07.9]} 28. Qh7 {[%clk 0:00:28.2]} 28... Qc5 {[%clk 0:00:08]} 29. Nf6
{[%clk 0:00:17.5]} 29... d3 {[%clk 0:00:02.7]} 30. Rxd3 {[%clk 0:00:13.3]} 30...
Rxd3 {[%clk 0:00:02.7]} 31. Bxd3 {[%clk 0:00:13.7]} 31... Rd8 {[%clk 0:00:03.2]}
32. Bf1 {[%clk 0:00:11.3]} 32... Rd2 {[%clk 0:00:01.8]} 33. Qg8+ {[%clk
0:00:08.4]} 33... Ke7 {[%clk 0:00:02.1]} 34. Re2 {[%clk 0:00:07.8]} 34... Rxe2
{[%clk 0:00:02.8]} 35. Bxe2 {[%clk 0:00:08.4]} 35... Qxe5 {[%clk 0:00:03.6]} 36.
Qxg7 {[%clk 0:00:07.2]} 36... Qxe2 {[%clk 0:00:03.7]} 37. Ng8+ {[%clk
0:00:06.8]} 37... Kd6 {[%clk 0:00:03.4]} 38. Qd4+ {[%clk 0:00:06.9]} 38... Bd5
{[%clk 0:00:02.7]} 39. Qb4+ {[%clk 0:00:06.6]} 39... Kc6 {[%clk 0:00:02]} 40.
Ne7+ {[%clk 0:00:06]} 40... Kd7 {[%clk 0:00:02.4]} 41. Nxd5 {[%clk 0:00:06.3]}
41... exd5 {[%clk 0:00:03.3]} 42. Qd4 {[%clk 0:00:06]} 42... Qe1+ {[%clk
0:00:03]} 43. Kg2 {[%clk 0:00:05.2]} 43... Qe4+ {[%clk 0:00:03.8]} 44. Kf1
{[%clk 0:00:05.4]} 44... Qxd4 {[%clk 0:00:03.2]} 45. cxd4 {[%clk 0:00:05.8]}
45... Ke6 {[%clk 0:00:04.1]} 46. g4 {[%clk 0:00:05.7]} 46... Kd6 {[%clk
0:00:03.8]} 47. Ke2 {[%clk 0:00:06.1]} 47... Kc6 {[%clk 0:00:04.6]} 48. Kd3
{[%clk 0:00:06.7]} 48... Kb5 {[%clk 0:00:05.3]} 49. Kc3 {[%clk 0:00:07.3]} 49...
Ka4 {[%clk 0:00:05.7]} 50. f3 {[%clk 0:00:07.1]} 50... f6 {[%clk 0:00:05.2]} 51.
Kc2 {[%clk 0:00:05.7]} 51... Kb4 {[%clk 0:00:06.1]} 52. Kd3 {[%clk 0:00:06.2]}
52... a5 {[%clk 0:00:04.6]} 53. Kd2 {[%clk 0:00:04.6]} 53... Kc4 {[%clk
0:00:05]} 54. Ke3 {[%clk 0:00:05.2]} 54... b5 {[%clk 0:00:04.8]} 55. f4 {[%clk
0:00:03.1]} 55... a4 {[%clk 0:00:03.7]} 56. fxg5 {[%clk 0:00:01.8]} 56... fxg5
{[%clk 0:00:04.6]} 57. a3 {[%clk 0:00:01.6]} 57... Kb3 {[%clk 0:00:05]} 58. Kd3
{[%clk 0:00:02.2]} 58... Kxb2 {[%clk 0:00:05.6]} 59. Kd2 {[%clk 0:00:02.4]}
59... Kxa3 {[%clk 0:00:06.2]} 60. Kc3 {[%clk 0:00:03]} 60... b4+ {[%clk
0:00:06.9]} 0-1

[Event "Late-Titled-Tuesday-Blitz-September-26-2023"]
[Site "Chess.com"]
[Date "2023.09.26"]
[Round "5"]
[White "vova-79"]
[Black "dretch"]
[Result "0-1"]
[WhiteElo "2613"]
[BlackElo "2850"]
[TimeControl "180+1"]
[EndTime "14:55:45 PDT"]
[Termination "dretch won on time"]

1. d4 {[%clk 0:03:00.9]} 1... d5 {[%clk 0:02:59.9]} 2. c4 {[%clk 0:02:59.8]}
2... c6 {[%clk 0:03:00.1]} 3. Nc3 {[%clk 0:02:59.3]} 3... dxc4 {[%clk
0:02:59.6]} 4. e3 {[%clk 0:02:59]} 4... b5 {[%clk 0:02:56.7]} 5. a4 {[%clk
0:02:59]} 5... b4 {[%clk 0:02:56.6]} 6. Nb1 {[%clk 0:02:51.1]} 6... Ba6 {[%clk
0:02:55.3]} 7. Nf3 {[%clk 0:02:50.1]} 7... e6 {[%clk 0:02:52.1]} 8. Nbd2 {[%clk
0:02:49.4]} 8... c3 {[%clk 0:02:52.4]} 9. bxc3 {[%clk 0:02:49.1]} 9... bxc3
{[%clk 0:02:52.4]} 10. Ne4 {[%clk 0:02:47.8]} 10... Qa5 {[%clk 0:02:48]} 11. Qc2
{[%clk 0:02:40.5]} 11... Nd7 {[%clk 0:02:40.5]} 12. Nxc3 {[%clk 0:02:13.8]}
12... Bb4 {[%clk 0:02:37.7]} 13. Bd2 {[%clk 0:02:13.3]} 13... Bxf1 {[%clk
0:02:36.2]} 14. Kxf1 {[%clk 0:02:12.6]} 14... Ngf6 {[%clk 0:02:34.5]} 15. g3
{[%clk 0:02:00.7]} 15... O-O {[%clk 0:02:27.9]} 16. Kg2 {[%clk 0:02:00.8]} 16...
c5 {[%clk 0:02:26.5]} 17. dxc5 {[%clk 0:01:55]} 17... Rac8 {[%clk 0:02:11.3]}
18. Nb5 {[%clk 0:01:50.4]} 18... Rxc5 {[%clk 0:01:56.5]} 19. Bxb4 {[%clk
0:01:47.7]} 19... Qxb4 {[%clk 0:01:56.4]} 20. Qb1 {[%clk 0:01:48.4]} 20... Qa5
{[%clk 0:01:48.3]} 21. Rc1 {[%clk 0:01:44.9]} 21... Rfc8 {[%clk 0:01:14.8]} 22.
Rxc5 {[%clk 0:01:43.3]} 22... Rxc5 {[%clk 0:01:15.7]} 23. Nbd4 {[%clk
0:01:42.1]} 23... Qc7 {[%clk 0:00:58.2]} 24. Qb3 {[%clk 0:01:24]} 24... e5
{[%clk 0:00:48.9]} 25. Nb5 {[%clk 0:01:16.8]} 25... Qc6 {[%clk 0:00:49.1]} 26.
Rd1 {[%clk 0:01:13.4]} 26... a6 {[%clk 0:00:30.1]} 27. Rd6 {[%clk 0:00:42.1]}
27... Qc8 {[%clk 0:00:16.7]} 28. Na3 {[%clk 0:00:32.6]} 28... h6 {[%clk
0:00:16.9]} 29. h3 {[%clk 0:00:24.6]} 29... Qa8 {[%clk 0:00:17]} 30. g4 {[%clk
0:00:22.9]} 30... e4 {[%clk 0:00:15.7]} 31. Nd4 {[%clk 0:00:22.3]} 31... h5
{[%clk 0:00:16.4]} 32. Nc4 {[%clk 0:00:14.8]} 32... hxg4 {[%clk 0:00:15.5]} 33.
hxg4 {[%clk 0:00:15.7]} 33... Rg5 {[%clk 0:00:15.7]} 34. Kf1 {[%clk 0:00:13.9]}
34... Rxg4 {[%clk 0:00:15.7]} 35. Nb6 {[%clk 0:00:14]} 35... Qb7 {[%clk
0:00:14.9]} 36. a5 {[%clk 0:00:13.3]} 36... Nf8 {[%clk 0:00:14.1]} 37. Rd8
{[%clk 0:00:11.3]} 37... Qe7 {[%clk 0:00:13.6]} 38. Rc8 {[%clk 0:00:10.5]} 38...
g6 {[%clk 0:00:14]} 39. Qc4 {[%clk 0:00:09.8]} 39... Kg7 {[%clk 0:00:14.3]} 40.
Rc7 {[%clk 0:00:09.8]} 40... Qe8 {[%clk 0:00:13.5]} 41. Rc8 {[%clk 0:00:07.9]}
41... Qe7 {[%clk 0:00:13.6]} 42. Rc7 {[%clk 0:00:08.4]} 42... Qe8 {[%clk
0:00:13.9]} 43. Rc8 {[%clk 0:00:08.9]} 43... Qe5 {[%clk 0:00:13.5]} 44. Rc7
{[%clk 0:00:08.6]} 44... Nd5 {[%clk 0:00:13.5]} 45. Nxd5 {[%clk 0:00:06.6]}
45... Rh4 {[%clk 0:00:12.7]} 46. Nf4 {[%clk 0:00:06.6]} 46... Rh1+ {[%clk
0:00:12.7]} 47. Kg2 {[%clk 0:00:06.5]} 47... Rh7 {[%clk 0:00:12]} 48. Qxf7+
{[%clk 0:00:06.4]} 48... Kh6 {[%clk 0:00:12.2]} 49. Qc4 {[%clk 0:00:05.1]} 49...
Rxc7 {[%clk 0:00:11.9]} 50. Qg8 {[%clk 0:00:05.2]} 50... Qg5+ {[%clk 0:00:12.3]}
51. Kh2 {[%clk 0:00:04.4]} 51... Nh7 {[%clk 0:00:13]} 52. Qe6 {[%clk 0:00:03.1]}
52... Qh4+ {[%clk 0:00:13]} 53. Qh3 {[%clk 0:00:02.9]} 53... Qxh3+ {[%clk
0:00:13.2]} 54. Kxh3 {[%clk 0:00:03.8]} 54... Nf6 {[%clk 0:00:13.6]} 55. Nfe6
{[%clk 0:00:02.9]} 55... Rc1 {[%clk 0:00:13.2]} 56. Kg3 {[%clk 0:00:02.6]} 56...
Rg1+ {[%clk 0:00:13.4]} 57. Kh2 {[%clk 0:00:02.6]} 57... Ra1 {[%clk 0:00:14.3]}
58. Kg3 {[%clk 0:00:02.9]} 58... Rxa5 {[%clk 0:00:14.6]} 59. Kf4 {[%clk
0:00:03.2]} 59... g5+ {[%clk 0:00:15]} 60. Kg3 {[%clk 0:00:03.4]} 60... Kg6
{[%clk 0:00:15.6]} 61. Nc7 {[%clk 0:00:02.4]} 61... Nh5+ {[%clk 0:00:16.5]} 62.
Kg2 {[%clk 0:00:02.1]} 62... Nf6 {[%clk 0:00:17.4]} 63. Kg3 {[%clk 0:00:02.4]}
63... Ra1 {[%clk 0:00:17.7]} 64. Nce6 {[%clk 0:00:01.5]} 64... a5 {[%clk
0:00:18.1]} 65. Nc5 {[%clk 0:00:01.8]} 65... a4 {[%clk 0:00:18.3]} 0-1

[Event "Late-Titled-Tuesday-Blitz-September-26-2023"]
[Site "Chess.com"]
[Date "2023.09.26"]
[Round "5"]
[White "PapaieDudu"]
[Black "Verony64"]
[Result "1-0"]
[WhiteElo "2419"]
[BlackElo "2279"]
[TimeControl "180+1"]
[EndTime "14:55:48 PDT"]
[Termination "PapaieDudu won by checkmate"]

1. e4 {[%clk 0:02:54.4]} 1... e5 {[%clk 0:02:58.6]} 2. Nf3 {[%clk 0:02:53]} 2...
d6 {[%clk 0:02:58.5]} 3. d4 {[%clk 0:02:52.9]} 3... Nd7 {[%clk 0:02:58.3]} 4.
Bc4 {[%clk 0:02:52.5]} 4... c6 {[%clk 0:02:56.5]} 5. O-O {[%clk 0:02:51.1]} 5...
Be7 {[%clk 0:02:47.3]} 6. Nc3 {[%clk 0:02:48.7]} 6... Ngf6 {[%clk 0:02:47.2]} 7.
h3 {[%clk 0:02:28.6]} 7... O-O {[%clk 0:02:43.5]} 8. Bb3 {[%clk 0:02:27.1]} 8...
Qc7 {[%clk 0:02:39.8]} 9. Be3 {[%clk 0:02:26.5]} 9... b5 {[%clk 0:02:36.9]} 10.
Qd3 {[%clk 0:02:23.9]} 10... Bb7 {[%clk 0:02:35.3]} 11. a4 {[%clk 0:02:23]}
11... b4 {[%clk 0:02:32.3]} 12. Ne2 {[%clk 0:02:23.4]} 12... c5 {[%clk
0:02:24.7]} 13. d5 {[%clk 0:02:14.2]} 13... a5 {[%clk 0:02:23.7]} 14. c4 {[%clk
0:01:53.9]} 14... g6 {[%clk 0:02:15.6]} 15. g4 {[%clk 0:01:50.4]} 15... Rfe8
{[%clk 0:02:12.7]} 16. Bh6 {[%clk 0:01:45.4]} 16... Bf8 {[%clk 0:02:11.8]} 17.
Be3 {[%clk 0:01:39.9]} 17... Bg7 {[%clk 0:02:09.5]} 18. Ng3 {[%clk 0:01:40.3]}
18... h6 {[%clk 0:02:02.5]} 19. Bd1 {[%clk 0:01:39]} 19... Nh7 {[%clk 0:02:00]}
20. b3 {[%clk 0:01:36.2]} 20... Ndf8 {[%clk 0:01:55.5]} 21. Qd2 {[%clk
0:01:36.6]} 21... g5 {[%clk 0:01:54.3]} 22. Nh5 {[%clk 0:01:26.9]} 22... Ng6
{[%clk 0:01:50.3]} 23. h4 {[%clk 0:01:11.7]} 23... Nf4 {[%clk 0:01:45.9]} 24.
hxg5 {[%clk 0:00:58.8]} 24... hxg5 {[%clk 0:01:43.2]} 25. Ng3 {[%clk 0:00:50.1]}
25... Bc8 {[%clk 0:01:40.1]} 26. Ne1 {[%clk 0:00:40]} 26... Qe7 {[%clk
0:01:28.6]} 27. Rc1 {[%clk 0:00:36.2]} 27... Qf6 {[%clk 0:01:28.3]} 28. f3
{[%clk 0:00:31.2]} 28... Bd7 {[%clk 0:01:26.2]} 29. Kf2 {[%clk 0:00:14.5]} 29...
Nf8 {[%clk 0:01:15.5]} 30. Rh1 {[%clk 0:00:13.9]} 30... N8g6 {[%clk 0:01:15.9]}
31. Kg1 {[%clk 0:00:12.8]} 31... Nh4 {[%clk 0:01:14]} 32. Rh2 {[%clk 0:00:11.3]}
32... Kf8 {[%clk 0:01:07.6]} 33. Rc2 {[%clk 0:00:10]} 33... Ke7 {[%clk
0:01:05.3]} 34. Nh5 {[%clk 0:00:09.6]} 34... Qh6 {[%clk 0:00:41.4]} 35. Ng2
{[%clk 0:00:10]} 35... Bf6 {[%clk 0:00:33]} 36. Nxh4 {[%clk 0:00:09.5]} 36...
gxh4 {[%clk 0:00:31.6]} 37. Nxf4 {[%clk 0:00:09.8]} 37... exf4 {[%clk
0:00:30.9]} 38. Bxf4 {[%clk 0:00:10.6]} 38... Qg7 {[%clk 0:00:30.8]} 39. g5
{[%clk 0:00:09.9]} 39... Bd4+ {[%clk 0:00:30.4]} 40. Kh1 {[%clk 0:00:09.6]}
40... h3 {[%clk 0:00:29.4]} 41. Qe2 {[%clk 0:00:09.3]} 41... Rh8 {[%clk
0:00:28.5]} 42. Qf1 {[%clk 0:00:08.9]} 42... Qg6 {[%clk 0:00:21.4]} 43. Bc1
{[%clk 0:00:08.8]} 43... Rh7 {[%clk 0:00:17.7]} 44. Rce2 {[%clk 0:00:06.8]}
44... Rah8 {[%clk 0:00:17.1]} 45. f4 {[%clk 0:00:07.2]} 45... Bg4 {[%clk
0:00:16.1]} 46. Re1 {[%clk 0:00:05.8]} 46... Bxd1 {[%clk 0:00:15.2]} 47. f5
{[%clk 0:00:05.6]} 47... Qh5 {[%clk 0:00:14]} 48. Rxd1 {[%clk 0:00:05.6]} 48...
Qg4 {[%clk 0:00:13.5]} 49. Re1 {[%clk 0:00:05.2]} 49... Rh4 {[%clk 0:00:11.9]}
50. e5 {[%clk 0:00:02.3]} 50... Bxe5 {[%clk 0:00:11.9]} 51. f6+ {[%clk
0:00:02.3]} 51... Kd7 {[%clk 0:00:11.5]} 52. Ree2 {[%clk 0:00:01.8]} 52... Qd4
{[%clk 0:00:11.1]} 53. Qe1 {[%clk 0:00:01.9]} 53... R8h5 {[%clk 0:00:10]} 54.
Be3 {[%clk 0:00:02.2]} 54... Qe4+ {[%clk 0:00:09.7]} 55. Kg1 {[%clk 0:00:01.9]}
55... Rg4+ {[%clk 0:00:09.8]} 56. Kf1 {[%clk 0:00:02.1]} 56... Bg3 {[%clk
0:00:09.6]} 57. Bf2 {[%clk 0:00:02.7]} 57... Qf3 {[%clk 0:00:09.4]} 58. Re7+
{[%clk 0:00:02.7]} 58... Kd8 {[%clk 0:00:06.4]} 59. Re8+ {[%clk 0:00:03.6]}
59... Kc7 {[%clk 0:00:06.3]} 60. Qe7+ {[%clk 0:00:04.5]} 60... Kb6 {[%clk
0:00:07.2]} 61. Rb8+ {[%clk 0:00:05]} 61... Ka6 {[%clk 0:00:07.5]} 62. Qb7#
{[%clk 0:00:05.9]} 1-0

[Event "Late-Titled-Tuesday-Blitz-September-26-2023"]
[Site "Chess.com"]
[Date "2023.09.26"]
[Round "5"]
[White "garfield_pg"]
[Black "2k28Lakers"]
[Result "0-1"]
[WhiteElo "2402"]
[BlackElo "2564"]
[TimeControl "180+1"]
[EndTime "14:55:55 PDT"]
[Termination "2k28Lakers won by resignation"]

1. d4 {[%clk 0:03:00.9]} 1... Nf6 {[%clk 0:02:52.8]} 2. Bf4 {[%clk 0:03:01.1]}
2... c5 {[%clk 0:02:52.8]} 3. dxc5 {[%clk 0:03:00.6]} 3... Nc6 {[%clk
0:02:51.8]} 4. Nf3 {[%clk 0:01:29.4]} 4... Nh5 {[%clk 0:02:48.6]} 5. Bd2 {[%clk
0:01:21.5]} 5... a5 {[%clk 0:02:46.6]} 6. Nc3 {[%clk 0:01:18.6]} 6... e5 {[%clk
0:02:31.2]} 7. Na4 {[%clk 0:01:12.7]} 7... Nf6 {[%clk 0:02:18.6]} 8. e3 {[%clk
0:01:04.2]} 8... d6 {[%clk 0:02:14]} 9. Bc3 {[%clk 0:00:45.8]} 9... e4 {[%clk
0:02:01.4]} 10. Nd4 {[%clk 0:00:43.5]} 10... Nxd4 {[%clk 0:01:44.1]} 11. Bxd4
{[%clk 0:00:39.7]} 11... Bd7 {[%clk 0:01:20.5]} 12. Nb6 {[%clk 0:00:35.6]} 12...
Rb8 {[%clk 0:01:20.6]} 13. cxd6 {[%clk 0:00:19.1]} 13... Bc6 {[%clk 0:01:20.5]}
14. Nc4 {[%clk 0:00:19.8]} 14... b5 {[%clk 0:01:15.1]} 15. Ne5 {[%clk
0:00:17.6]} 15... Bd5 {[%clk 0:01:01]} 16. a4 {[%clk 0:00:17.1]} 16... b4 {[%clk
0:00:58.1]} 17. Bb5+ {[%clk 0:00:16]} 17... Rxb5 {[%clk 0:00:53.7]} 18. axb5
{[%clk 0:00:16.9]} 18... Bxd6 {[%clk 0:00:52.6]} 19. Nc6 {[%clk 0:00:09.6]}
19... Bxc6 {[%clk 0:00:43.8]} 20. bxc6 {[%clk 0:00:10.5]} 20... O-O {[%clk
0:00:43.5]} 21. Qe2 {[%clk 0:00:08.6]} 21... Qc7 {[%clk 0:00:30.6]} 22. Qb5
{[%clk 0:00:09]} 22... Rb8 {[%clk 0:00:23.2]} 23. Qxa5 {[%clk 0:00:05.8]} 23...
Qxc6 {[%clk 0:00:23.1]} 24. Bxf6 {[%clk 0:00:05.8]} 24... gxf6 {[%clk 0:00:24]}
25. Qf5 {[%clk 0:00:04.3]} 25... b3 {[%clk 0:00:20.3]} 26. c3 {[%clk 0:00:02.8]}
26... Qc4 {[%clk 0:00:18.2]} 27. O-O-O {[%clk 0:00:03.7]} 27... Be5 {[%clk
0:00:15.9]} 28. Qg4+ {[%clk 0:00:03.4]} 28... Kf8 {[%clk 0:00:14.9]} 29. Qd7
{[%clk 0:00:03.8]} 29... Ra8 {[%clk 0:00:13.5]} 30. Kd2 {[%clk 0:00:04.4]} 30...
Ra2 {[%clk 0:00:12.6]} 31. Rb1 {[%clk 0:00:04.1]} 31... Kg7 {[%clk 0:00:11.6]}
32. Ke1 {[%clk 0:00:04.1]} 32... Bxc3+ {[%clk 0:00:10.5]} 33. Kd1 {[%clk
0:00:02.7]} 33... Be5 {[%clk 0:00:10.5]} 34. Qg4+ {[%clk 0:00:02.9]} 34... Kh8
{[%clk 0:00:09.1]} 35. Qe2 {[%clk 0:00:03.7]} 35... Qd5+ {[%clk 0:00:08.7]} 36.
Ke1 {[%clk 0:00:04.1]} 36... Bc3+ {[%clk 0:00:08.6]} 37. Kf1 {[%clk 0:00:03.6]}
37... Bxb2 {[%clk 0:00:09.3]} 38. g4 {[%clk 0:00:02.3]} 38... Be5 {[%clk
0:00:09.3]} 39. Qe1 {[%clk 0:00:02.6]} 39... f5 {[%clk 0:00:08.4]} 40. Kg2
{[%clk 0:00:02.7]} 40... fxg4 {[%clk 0:00:08.7]} 41. Qd1 {[%clk 0:00:03.3]}
41... Qe6 {[%clk 0:00:07.8]} 42. Qd8+ {[%clk 0:00:03.6]} 42... Kg7 {[%clk
0:00:07.2]} 43. Qg5+ {[%clk 0:00:04.3]} 43... Kf8 {[%clk 0:00:06.9]} 44. Qd8+
{[%clk 0:00:04.7]} 44... Qe8 {[%clk 0:00:07.5]} 45. Qxe8+ {[%clk 0:00:04.4]}
45... Kxe8 {[%clk 0:00:08.4]} 46. Rhc1 {[%clk 0:00:03.2]} 46... b2 {[%clk
0:00:08]} 47. Rc5 {[%clk 0:00:03.7]} 47... f6 {[%clk 0:00:07.9]} 48. Rc4 {[%clk
0:00:03.1]} 48... Ra1 {[%clk 0:00:08.2]} 49. Rxb2 {[%clk 0:00:01.7]} 49... Bxb2
{[%clk 0:00:07.8]} 50. Rxe4+ {[%clk 0:00:02.4]} 50... Be5 {[%clk 0:00:08]} 51.
Rxg4 {[%clk 0:00:03.3]} 51... Kf7 {[%clk 0:00:07.2]} 52. Rh4 {[%clk 0:00:02.7]}
52... Kg7 {[%clk 0:00:07.3]} 53. Rg4+ {[%clk 0:00:03.3]} 53... Kf7 {[%clk
0:00:07.6]} 54. Rh4 {[%clk 0:00:03.8]} 54... Kg8 {[%clk 0:00:07.9]} 55. Rg4+
{[%clk 0:00:04.2]} 55... Kh8 {[%clk 0:00:08.6]} 56. Rb4 {[%clk 0:00:04.1]} 56...
Ra8 {[%clk 0:00:08.5]} 57. h4 {[%clk 0:00:04.3]} 57... Rg8+ {[%clk 0:00:08.6]}
58. Kf3 {[%clk 0:00:04.9]} 58... Kg7 {[%clk 0:00:09.2]} 59. Rg4+ {[%clk
0:00:05]} 59... Kf7 {[%clk 0:00:09.5]} 60. Rb4 {[%clk 0:00:05.7]} 60... Rg1
{[%clk 0:00:09.4]} 61. Rb7+ {[%clk 0:00:05.9]} 61... Kg6 {[%clk 0:00:09.8]} 62.
Rb4 {[%clk 0:00:05.4]} 62... Rh1 {[%clk 0:00:09.6]} 63. Kg2 {[%clk 0:00:04.3]}
63... Rc1 {[%clk 0:00:09.7]} 64. Kf3 {[%clk 0:00:04.4]} 64... Bd6 {[%clk
0:00:10.1]} 65. Kg4 {[%clk 0:00:04]} 65... Bxb4 {[%clk 0:00:10.2]} 0-1

[Event "Late-Titled-Tuesday-Blitz-September-26-2023"]
[Site "Chess.com"]
[Date "2023.09.26"]
[Round "5"]
[White "ErikRonka"]
[Black "traack"]
[Result "1-0"]
[WhiteElo "2493"]
[BlackElo "2394"]
[TimeControl "180+1"]
[EndTime "14:56:34 PDT"]
[Termination "ErikRonka won by resignation"]

1. e4 {[%clk 0:03:00.9]} 1... c5 {[%clk 0:02:59.4]} 2. a3 {[%clk 0:02:58.9]}
2... d5 {[%clk 0:02:54.4]} 3. exd5 {[%clk 0:02:58.7]} 3... Qxd5 {[%clk
0:02:55.3]} 4. Nc3 {[%clk 0:02:59.3]} 4... Qd8 {[%clk 0:02:52]} 5. b4 {[%clk
0:02:59.8]} 5... e6 {[%clk 0:02:48.9]} 6. Nf3 {[%clk 0:02:58.9]} 6... Nf6 {[%clk
0:02:46.4]} 7. Bb5+ {[%clk 0:02:58.3]} 7... Bd7 {[%clk 0:02:46]} 8. Qe2 {[%clk
0:02:58]} 8... Nc6 {[%clk 0:02:42.6]} 9. O-O {[%clk 0:02:57.5]} 9... cxb4 {[%clk
0:02:36.9]} 10. axb4 {[%clk 0:02:58.4]} 10... Bxb4 {[%clk 0:02:36.8]} 11. Bb2
{[%clk 0:02:58.5]} 11... O-O {[%clk 0:02:36.4]} 12. Ne4 {[%clk 0:02:51.7]} 12...
Be7 {[%clk 0:02:30.6]} 13. d4 {[%clk 0:02:32.3]} 13... a6 {[%clk 0:02:18]} 14.
Ba4 {[%clk 0:02:26.3]} 14... Nxe4 {[%clk 0:02:03]} 15. Qxe4 {[%clk 0:02:22.3]}
15... Bf6 {[%clk 0:01:58.5]} 16. c4 {[%clk 0:02:18.9]} 16... Ne7 {[%clk
0:01:49.3]} 17. Bc2 {[%clk 0:02:17.8]} 17... g6 {[%clk 0:01:42.2]} 18. Ne5
{[%clk 0:02:18.3]} 18... Bc6 {[%clk 0:01:36]} 19. Nxc6 {[%clk 0:02:12.3]} 19...
Nxc6 {[%clk 0:01:35.6]} 20. Rad1 {[%clk 0:02:11.8]} 20... Qb6 {[%clk 0:01:34.6]}
21. Ba1 {[%clk 0:02:10.4]} 21... Rad8 {[%clk 0:01:33.4]} 22. d5 {[%clk
0:01:53.6]} 22... Bxa1 {[%clk 0:01:30.9]} 23. dxc6 {[%clk 0:01:47.6]} 23... Bd4
{[%clk 0:00:58]} 24. cxb7 {[%clk 0:01:46.7]} 24... e5 {[%clk 0:00:53.2]} 25. Rb1
{[%clk 0:01:42]} 25... Qc7 {[%clk 0:00:53.3]} 26. Bd3 {[%clk 0:01:25.5]} 26...
Rb8 {[%clk 0:00:53.2]} 27. Rb3 {[%clk 0:01:12.8]} 27... a5 {[%clk 0:00:51.9]}
28. Rfb1 {[%clk 0:01:12.5]} 28... Rfd8 {[%clk 0:00:44.4]} 29. Qe2 {[%clk
0:01:11.5]} 29... f5 {[%clk 0:00:40.8]} 30. Rb5 {[%clk 0:00:50.1]} 30... a4
{[%clk 0:00:39.2]} 31. Qa2 {[%clk 0:00:49.7]} 31... e4 {[%clk 0:00:33.8]} 32.
Bf1 {[%clk 0:00:47.2]} 32... Bc5 {[%clk 0:00:30.1]} 33. Qxa4 {[%clk 0:00:45.3]}
33... Rd2 {[%clk 0:00:30.5]} 34. Qa5 {[%clk 0:00:09.5]} 34... Bxf2+ {[%clk
0:00:27.2]} 35. Kh1 {[%clk 0:00:09.6]} 35... Qf4 {[%clk 0:00:19.4]} 36. c5
{[%clk 0:00:05.5]} 36... e3 {[%clk 0:00:15.5]} 37. c6 {[%clk 0:00:04.8]} 37...
Rc2 {[%clk 0:00:11.5]} 38. c7 {[%clk 0:00:03.2]} 38... Qxc7 {[%clk 0:00:09.3]}
39. Qa4 {[%clk 0:00:02.9]} 39... e2 {[%clk 0:00:08.2]} 40. Bxe2 {[%clk
0:00:02.7]} 40... Rc1+ {[%clk 0:00:08.2]} 41. Bf1 {[%clk 0:00:01.9]} 41... Rxb1
{[%clk 0:00:06.4]} 42. Rxb1 {[%clk 0:00:02.8]} 42... Kg7 {[%clk 0:00:06.6]} 43.
Qb3 {[%clk 0:00:02.8]} 43... Kh6 {[%clk 0:00:06.3]} 44. h3 {[%clk 0:00:03.7]}
44... Bg3 {[%clk 0:00:05.2]} 45. Be2 {[%clk 0:00:03.2]} 45... Be5 {[%clk
0:00:05.7]} 46. Bf3 {[%clk 0:00:03.8]} 46... Kg5 {[%clk 0:00:06]} 47. Qe3+
{[%clk 0:00:04]} 47... Bf4 {[%clk 0:00:05.8]} 48. Qe2 {[%clk 0:00:04.9]} 48...
Kf6 {[%clk 0:00:06.4]} 49. Re1 {[%clk 0:00:04.9]} 49... Kg7 {[%clk 0:00:06.9]}
50. Qe7+ {[%clk 0:00:04.7]} 50... Qxe7 {[%clk 0:00:07.4]} 51. Rxe7+ {[%clk
0:00:05.3]} 51... Kf6 {[%clk 0:00:08.3]} 52. Rd7 {[%clk 0:00:05.9]} 52... h5
{[%clk 0:00:08.3]} 53. Rd5 {[%clk 0:00:05.7]} 53... g5 {[%clk 0:00:08.2]} 54.
Rb5 {[%clk 0:00:06.6]} 54... g4 {[%clk 0:00:08.7]} 55. hxg4 {[%clk 0:00:07]}
55... hxg4 {[%clk 0:00:09.6]} 56. Bd5 {[%clk 0:00:07.3]} 56... Kg5 {[%clk
0:00:10.1]} 57. Bc6 {[%clk 0:00:07.6]} 57... Bg3 {[%clk 0:00:09.7]} 58. Kg1
{[%clk 0:00:07.7]} 58... Rd8 {[%clk 0:00:10.2]} 59. Kf1 {[%clk 0:00:05.5]} 59...
Kf4 {[%clk 0:00:08.1]} 60. Ke2 {[%clk 0:00:05.8]} 60... Rb8 {[%clk 0:00:06.4]}
61. Bd7 {[%clk 0:00:05.3]} 61... Kg5 {[%clk 0:00:05.4]} 62. Bxf5 {[%clk
0:00:04.9]} 62... Kf6 {[%clk 0:00:04.9]} 63. Bxg4 {[%clk 0:00:04.8]} 63... Be5
{[%clk 0:00:04.9]} 64. Bf3 {[%clk 0:00:05]} 64... Ke7 {[%clk 0:00:05.2]} 65. Ke3
{[%clk 0:00:05]} 65... Kd7 {[%clk 0:00:05.6]} 66. Rxe5 {[%clk 0:00:04.6]} 66...
Kd6 {[%clk 0:00:05.8]} 67. Re4 {[%clk 0:00:04.7]} 67... Kc6 {[%clk 0:00:06]} 68.
Rd4+ {[%clk 0:00:04.5]} 68... Kc5 {[%clk 0:00:06.1]} 69. g4 {[%clk 0:00:05.3]}
69... Re8+ {[%clk 0:00:05.5]} 70. Re4 {[%clk 0:00:05.8]} 70... Rf8 {[%clk
0:00:03.1]} 71. Rf4 {[%clk 0:00:05.4]} 71... Re8+ {[%clk 0:00:02.6]} 72. Be4
{[%clk 0:00:05.7]} 72... Rd8 {[%clk 0:00:03]} 73. g5 {[%clk 0:00:05.4]} 73...
Kb6 {[%clk 0:00:03.5]} 74. Rf6+ {[%clk 0:00:05.5]} 74... Ka7 {[%clk 0:00:03.2]}
75. Kf4 {[%clk 0:00:05.8]} 75... Re8 {[%clk 0:00:03.5]} 76. g6 {[%clk 0:00:06]}
76... Rg8 {[%clk 0:00:04.2]} 77. Rf7 {[%clk 0:00:06]} 77... Rxg6 {[%clk
0:00:04.4]} 78. Bxg6 {[%clk 0:00:05.8]} 1-0